Cogmind - Beta 14 @@@ ROGUE MODE // 2025.01.13 @ 20:19:18 Player: celerysam Result: Destroyed by G-34 Mercenary with Small Laser Performance ------------- Evolutions (1) 500 Regions Visited (4) 800 Robots Destroyed (28) 140 Value Destroyed (721) 721 Prototype IDs (5) 100 Alien Tech Used (0) 0 Bonus (0) 0 TOTAL SCORE: 2261 Bonus ------- None Cogmind --------- Core Integrity 0/400 Matter 292/300 Energy 277/280 System Corruption 0% Temperature Warm (192) Movement Core (350) Ox6 Location -9/Storage Parts ------- > --- POWER (1) -------- Cooled Ion Engine > --- PROPULSION (3) --- (None) > --- UTILITY (3) ------ Small Storage Unit Sensor Array > --- WEAPON (2) ------- Improved Medium Laser Improved Assault Rifle > --- INVENTORY (8) ---- Improved Ion Engine Hover Unit Weight Redist. System Improved Light Cannon Improved Light Cannon Rocket Launcher Mace Peak State ------------ > --- POWER ------------ Cooled Ion Engine > --- PROPULSION ------- Light Treads Light Treads Light Treads > --- UTILITY ---------- Small Storage Unit Sensor Array Power Shielding > --- WEAPON ----------- Improved EM Shotgun Improved Medium Laser > --- INVENTORY -------- Improved Ion Engine Hover Unit Improved Assault Rifle Improved Light Cannon Improved Light Cannon Rocket Launcher Mace [Rating: 16] Favorites ----------- Power Ion Engine Engine Ion Engine Propulsion Light Treads Treads Light Treads Leg Aluminum Leg Wheel Compact Wheel Hover Unit Hover Unit Utility Small Storage Unit Device Sensor Array Storage Small Storage Unit Protection Power Shielding Weapon Assault Rifle Energy Gun Improved EM Shotgun Ballistic Gun Assault Rifle Ballistic Cannon Improved Light Cannon Launcher Rocket Launcher Impact Weapon Mace Build | -11 -10 -10 -9 -9 ------- Run | Yrd Mat Min Mat Sto Slots Evolved 2 | . . . 2 . Power . | . . . . . Propulsion 1 | . . . 1 . Utility 1 | . . . 1 . Weapon . | . . . . . Parts Attached 43 | 7 2 . 5 29 Power 5 | 1 . . . 4 Engine 5 | 1 . . . 4 Core . | . . . . . Reactor . | . . . . . Propulsion 15 | 2 1 . 4 8 Treads 6 | . . . 2 4 Leg 3 | . . . 2 1 Wheel 4 | 2 1 . . 1 Hover 2 | . . . . 2 Flight . | . . . . . Utility 5 | 1 1 . 1 2 Device 2 | . 1 . . 1 Storage 1 | 1 . . . . Processor . | . . . . . Hackware . | . . . . . Protection 2 | . . . 1 1 Artifact . | . . . . . Weapon 18 | 3 . . . 15 Energy Gun 3 | . . . . 3 Energy Cannon . | . . . . . Ballistic Gun 7 | 3 . . . 4 Ballistic Cannon 3 | . . . . 3 Launcher 1 | . . . . 1 Special Weapon . | . . . . . Impact Weapon 4 | . . . . 4 Slashing Weapon . | . . . . . Piercing Weapon . | . . . . . Special Melee Weapon . | . . . . . Unidentified Prototypes 5 | . . . . 5 Parts Lost 16 | . . . 6 10 Power 2 | . . . 1 1 Propulsion 8 | . . . 2 6 Utility 3 | . . . 1 2 Weapon 3 | . . . 2 1 Highest Loss Streak 6 | . . . 6 4 To Critical Strikes . | . . . . . Average Slot Usage (%) 82 | . 95 100 55 81 Engine 10 | . 14 14 5 9 Treads 12 | . . . 9 18 Leg 4 | . . . 5 5 Wheel 7 | . 28 28 6 . Device 6 | . 10 14 2 5 Storage 11 | . 14 14 11 11 Protection 7 | . . . 7 10 Energy Gun 6 | . . . . 10 Ballistic Gun 8 | . 28 28 8 1 Ballistic Cannon 1 | . . . . 2 Impact Weapon 3 | . . . . 4 Peak Build Rating 16 | 6 7 7 7 16 Average Rating 9 | 4 6 7 5 12 On Entrance 5 | . 6 7 7 5 Naked Turns . | . . . . . Heaviest Build 23 | 14 15 15 15 23 Greatest Support 60 | 32 32 26 40 60 Greatest Overweight (x) 3 | 3 . . 1 2 Average Overweight (x) . | . . . . . Largest Inventory Capacity 8 | 8 8 8 8 8 Average Capacity 7 | 7 8 8 8 8 Most Carried 8 | 7 8 8 8 8 Average Carried 7 | 2 7 8 7 7 Final Capacity 8 | 8 8 8 8 8 Final Carried 8 | 6 8 8 8 7 Class Distribution -------------------- 100% | Mutant Dominant Class ---------------- Mutant | -10/Materials Mutant | -10/Mines Mutant | -9/Materials Mutant | -9/Storage Resources | -11 -10 -10 -9 -9 ----------- Run | Yrd Mat Min Mat Sto Matter Collected 760 | 223 14 41 105 377 Remotely . | . . . . . Salvage Created 922 | . 90 41 52 739 Parts 63 | . 10 2 1 50 Haulers Intercepted . | . . . . . Recyclers Shooed 1 | . . . . 1 Parts Field Recycled . | . . . . . Retrieved Matter . | . . . . . Parts Self-Destructed . | . . . . . Prevented . | . . . . . Kills | -11 -10 -10 -9 -9 ------- Run | Yrd Mat Min Mat Sto Combat Hostiles Destroyed 23 | . 3 1 1 18 Guns 15 | . 3 1 1 10 Cannons 1 | . . . . 1 AOE 5 | . . . . 5 Classes Destroyed 7 | . 3 1 1 2 Worker 1 | . 1 . . . Builder 1 | . . . . 1 Recycler 1 | . . . . 1 Watcher 2 | . 1 . . 1 Swarmer 9 | . 3 . . 6 Grunt 6 | . . 1 . 5 Sentry 8 | . . . 1 7 Best Kill Streak 5 | . 5 1 1 5 Combat Bots Only 5 | . 3 1 1 5 Max Kills in Single Turn 2 | . 1 1 1 2 Gunslinging . | . . . . . Exploded 2 | . . . . 2 Melee . | . . . . . Uniques/NPCs Destroyed . | . . . . . Combat | -11 -10 -10 -9 -9 -------- Run | Yrd Mat Min Mat Sto Hostile Shots Fired 213 | . 27 4 60 122 Missed 58 | . 9 . 21 28 Damage Taken 2059 | . 156 50 569 1284 Core 471 | . 26 38 97 310 Absorbed by Shields . | . . . . . Redirected to Shielding 50 | . . . 4 46 Core Remaining (%) 87 | 100 . 74 . . Volleys Fired 62 | . 11 3 6 42 Largest 2 | . 2 2 2 2 Hottest 101 | . 40 40 40 101 Shots Fired 103 | . 22 6 12 63 Gun 91 | . 22 6 12 51 Cannon 9 | . . . . 9 Launcher 3 | . . . . 3 Special . | . . . . . Kinetic 57 | . 22 6 12 17 Thermal 20 | . . . . 20 Explosive 3 | . . . . 3 Electromagnetic 23 | . . . . 23 Robot Hit Streak 12 | . 3 4 5 12 Robot Miss Streak 4 | . 2 1 1 4 Penetration Max . | . . . . . Secondary Targets 3 | . . . . 3 Max Gunslinging Chain 1 | . . . . 1 Shots Hit Robots 88 | . 13 5 9 61 Core Hits 41 | . 5 2 2 32 Critical Kills . | . . . . . Critical Parts Destroyed . | . . . . . Critical Strikes 3 | . . . . 3 Burn 2 | . . . . 2 Blast 1 | . . . . 1 Melee Attacks 19 | . . . . 19 Impact 19 | . . . . 19 Slashing . | . . . . . Piercing . | . . . . . Sneak Attacks 2 | . . . . 2 Combat Hostiles 1 | . . . . 1 Follow-up Attacks . | . . . . . Damage Inflicted 1957 | . 193 69 116 1579 Guns 1059 | . 193 69 114 683 Cannons 180 | . . . . 180 Explosions 378 | . . . . 378 Melee 334 | . . . . 334 Ramming 6 | . . . 2 4 Kinetic 671 | . 193 69 114 295 Thermal 301 | . . . . 301 Explosive 338 | . . . . 338 Electromagnetic 307 | . . . . 307 Impact 334 | . . . . 334 Slashing . | . . . . . Piercing . | . . . . . Highest Corruption . | . . . . . Average Corruption . | . . . . . Corruption Purged . | . . . . . Corruption Blocked . | . . . . . Overload Shots . | . . . . . Overflow Damage 19 | . . . . 19 Projectiles . | . . . . . Explosions . | . . . . . Melee 19 | . . . . 19 Knockbacks 1 | . . . . 1 Impact . | . . . . . Kinetic 1 | . . . . 1 Secondary . | . . . . . Self-Inflicted Damage 51 | . . . . 51 Shots 2 | . . . . 2 Rammed 3 | . . . 2 1 Targets Rammed 3 | . . . 2 1 Kicked . | . . . . . Crushed . | . . . . . Highest Temperature 195 | . . . . 195 Average Temperature 61 | . . . . 61 Received Heat Transfer 681 | . 9 27 189 456 Siege Activations . | . . . . . Robots Corrupted 2 | . . . . 2 Combat Hostiles 2 | . . . . 2 Parts Fried . | . . . . . Impact Corruptions 2 | . . . . 2 Robots Melted . | . . . . . Combat Hostiles . | . . . . . Parts Melted . | . . . . . Heat Transferred 753 | . . . . 753 Parts Sabotaged . | . . . . . Parts Stolen . | . . . . . Parts Stripped . | . . . . . Power Chain Reactions 1 | . . . . 1 Alert | -11 -10 -10 -9 -9 ------- Run | Yrd Mat Min Mat Sto Peak Influence 400 | . 136 72 62 400 Initial 52 | . . 52 27 4 Average 117 | . 36 60 23 175 Maximum Alert Level 2 | . . . . 2 Low Security (%) 71 | 100 100 100 100 51 Level 1 25 | . . . . 43 Level 2 3 | . . . . 5 Level 3 . | . . . . . Level 4 . | . . . . . Level 5 . | . . . . . High Security . | . . . . . Max Security . | . . . . . Squads Dispatched 3 | . 1 . . 2 Investigation 1 | . . . . 1 Extermination . | . . . . . Reinforcement 2 | . 1 . . 1 Assault . | . . . . . Garrison . | . . . . . Intercept . | . . . . . Searches Triggered . | . . . . . Construction Impeded . | . . . . . Haulers Reinforced . | . . . . . Active Scanning Responses . | . . . . . Cargo Convoy Interrupts . | . . . . . Stealth | -11 -10 -10 -9 -9 --------- Run | Yrd Mat Min Mat Sto Distress Signals 3 | . 1 . . 2 Communications Jammed . | . . . . . Distress Signals . | . . . . . Times Spotted 42 | . 8 2 7 25 Peak Tracking Total 6 | . 5 2 6 4 Tactical Retreats 3 | . 1 . . 2 Traps | -11 -10 -10 -9 -9 ------- Run | Yrd Mat Min Mat Sto Traps Triggered 1 | . . . . 1 Indirectly . | . . . . . Trap Hack Attempts . | . . . . . Triggered . | . . . . . Disarmed . | . . . . . Reprogrammed . | . . . . . Reused . | . . . . . Traps Extracted . | . . . . . Installed . | . . . . . Triggered . | . . . . . Machines | -11 -10 -10 -9 -9 ---------- Run | Yrd Mat Min Mat Sto Machines Disabled 1 | . . . . 1 Max in Single Turn 1 | . . . . 1 Machines Repaired . | . . . . . Machines Dismantled . | . . . . . Machines Sabotaged . | . . . . . Overloaded Fab Kills . | . . . . . Hacking | -11 -10 -10 -9 -9 --------- Run | Yrd Mat Min Mat Sto Machines Accessed 6 | . 2 . . 4 Terminals 6 | . 2 . . 4 Fabricators . | . . . . . Repair Stations . | . . . . . Recycling Units . | . . . . . Scanalyzers . | . . . . . Garrison Access . | . . . . . Total Hacks 11 | . 3 . . 8 Successful 7 | . 2 . . 5 Failed 4 | . 1 . . 3 Catastrophic 1 | . . . . 1 Database Lockouts . | . . . . . Manual 9 | . 3 . . 6 Terminals 11 | . 3 . . 8 Fabricators . | . . . . . Repair Stations . | . . . . . Recycling Units . | . . . . . Scanalyzers . | . . . . . Garrison Access . | . . . . . Terminal Hacks 2 | . . . . 2 Alert Level 1 | . . . . 1 Locate Traps 1 | . . . . 1 Fabricator Hacks . | . . . . . Repair Station Hacks . | . . . . . Recycling Unit Hacks . | . . . . . Scanalyzer . | . . . . . Garrison Access Hacks . | . . . . . Unauthorized Hacks 5 | . 2 . . 3 Terminals 5 | . 2 . . 3 Assimilate 1 | . . . . 1 Botnet 4 | . 2 . . 2 Fabricators . | . . . . . Repair Stations . | . . . . . Recycling Units . | . . . . . Scanalyzers . | . . . . . Garrison Access . | . . . . . Data Cores Recovered . | . . . . . Used . | . . . . . Hacking Detections 4 | . . . . 4 Full Trace Events 1 | . . . . 1 Feedback Events . | . . . . . Feedback Blocked . | . . . . . Robot Schematics Acquired . | . . . . . Robots Built . | . . . . . Authchips . | . . . . . Time . | . . . . . Total Robot Build Rating . | . . . . . Part Schematics Acquired . | . . . . . Parts Built . | . . . . . Authchips . | . . . . . Time . | . . . . . Total Part Build Rating . | . . . . . Parts Repaired . | . . . . . Time . | . . . . . Parts Recycled . | . . . . . Recycled Matter . | . . . . . Retrieved Matter . | . . . . . Retrieved Components . | . . . . . Parts Scanalyzed . | . . . . . Part Schematics Acquired . | . . . . . Parts Damaged . | . . . . . Bothacking | -11 -10 -10 -9 -9 ------------ Run | Yrd Mat Min Mat Sto Used RIF Installer . | . . . . . Robots Hacked . | . . . . . Non-combat . | . . . . . Combat . | . . . . . Robot Hacks Applied . | . . . . . Relay Couplers Released . | . . . . . Fabnet Peak Effective % . | . . . . . Robots Rewired . | . . . . . Allies Hacked . | . . . . . Hacks Repelled . | . . . . . Allies | -11 -10 -10 -9 -9 -------- Run | Yrd Mat Min Mat Sto Total Allies . | . . . . . Largest Group . | . . . . . Highest-Rated Group . | . . . . . Highest-Rated Ally . | . . . . . Total Orders . | . . . . . Ally Attacks . | . . . . . Total Damage . | . . . . . Kills . | . . . . . Allies Corrupted . | . . . . . Allies Melted . | . . . . . Intel | -11 -10 -10 -9 -9 ------- Run | Yrd Mat Min Mat Sto Robot Analysis Total . | . . . . . Derelict Logs Recovered . | . . . . . Drone Launches . | . . . . . Drone Recoveries . | . . . . . Exploration | -11 -10 -10 -9 -9 ------------- Run | Yrd Mat Min Mat Sto Turns Passed 1111 | 62 208 53 123 665 Spaces Moved 649 | 40 172 48 73 316 Core 17 | 14 . . . 3 Treads 228 | . . . 29 199 Legs 81 | . . . 23 58 Wheels 267 | 26 172 48 21 . Hover 56 | . . . . 56 Flight . | . . . . . Fastest Speed 50 | 50 90 90 90 80 Average Speed 121 | 108 98 90 127 140 Slowest Speed 200 | 200 100 90 160 190 Overloaded Moves . | . . . . . Propulsion Burnouts . | . . . . . Robots Hopped . | . . . . . Cave-ins Triggered . | . . . . . Exploration Rate (%) 26 | 4 40 17 13 56 Regions Visited 4 Branch Regions 2 Pre-discovered Areas . | . . . . . Known Exits Taken . | . . . . . Unknown Exits Taken 4 | 1 1 1 1 . Scrap Searched . | . . . . . Spaces Dug 4 | . . . . 4 Terrain Destroyed 32 | . . . . 32 Melee 4 | . . . . 4 Projectile 1 | . . . . 1 AOE 27 | . . . . 27 Terrain Rammed . | . . . . . Walls Destroyed . | . . . . . Machines Disabled . | . . . . . Actions | -11 -10 -10 -9 -9 --------- Run | Yrd Mat Min Mat Sto Total 826 | 58 189 51 88 440 Wait 8 | . . 1 . 7 Move 645 | 39 171 47 72 316 Hop . | . . . . . Pick Up 35 | 12 4 . 3 16 Fast Attach 6 | . . . . 6 Attach 21 | 6 1 . 3 11 Detach . | . . . . . Swap 16 | 1 1 . 2 12 Drop 11 | . 1 . . 10 Fire 62 | . 11 3 6 42 Melee 19 | . . . . 19 Ram . | . . . . . Kick . | . . . . . Crush 3 | . . . 2 1 Escape Stasis . | . . . . . Rewire . | . . . . . Trap . | . . . . . Miscellaneous . | . . . . . Route ------- -11/Scrapyard -10/Materials -10/Mines -9/Materials -9/Storage History --------- Turn | Location | Event 22 | -11/Scrapyard | Discovered new exit (range 16) 63 | -11/Scrapyard | Entered Materials 267 | -10/Materials | Discovered new exit (range 6) 271 | -10/Materials | Entered Mines 281 | -10/Mines | Discovered new exit (range 10) 300 | -10/Mines | Build established: Mutant 324 | -10/Mines | Entered Materials 324 | -9/Materials | Evolved 2 slots: Propulsion x1, Utility x1 419 | -9/Materials | Lost 6 parts (1p2n1u2w) 423 | -9/Materials | Discovered new exit (range 14) 447 | -9/Materials | Entered Storage 630 | -9/Storage | Core integrity fell below 50% 666 | -9/Storage | Lost 3 parts (1p2n) 872 | -9/Storage | Core integrity fell below 20% 1112 | -9/Storage | Destroyed by G-34 Mercenary with Small Laser Last Messages --------------- 01055_ Chain reaction triggered in Lgt. Ion Engine. 01055_ S-10 Pest destroyed. 01055_ Switching to secondary target: S-10 Pest. 01055_ S-10 Pest destroyed. 01086_ W-16 Scout sends out distress signal. 01095_ Lgt. Treads destroyed. 01099_ Destroyed Heat Sink. 01100_ Imp. EM Shotgun destroyed. 01102_ Y-45 Defender suffers critical hit (Burn). 01103_ Lgt. Treads destroyed. 01106_ Critical hit (Burn: +37). 01107_ Y-45 Defender destroyed. 01108_ Y-45 Defender suffers critical hit (Burn). 01110_ Lgt. Armor Plating destroyed. 01111_ Y-45 Defender destroyed. 01111_ Switching to secondary target: G-34 Mercenary. Map ----- +----------------------------------------------------+ | ?????????# [=/ [%"[ "*"" " # # ##?# | | ?????????# """"" # =% " ""*" # #??# | | ?????????#[=""""" # # """"=" # # # | | ?????????#!%""""" ## ## ??""" # =% # | | ?????????# = ## ## ??? + [ + # | | ?????????###### #### ######?##### ## # # | | ??????????????###??# #?????????##### ##T # | | ???????????????????# #?????????????# #?#### | | ???????????????????# #?????????????#+#????# | | ???????????????????# #????????????? ?????? | | ???????????????????# #????????????? ?????? | | ???????????????????# #????????????? ?????? | | ???????????????????# #????????????? ?????? | | ???????????????????# #?????????????? ?????? | | ???????????????????# w#????????????????????? | | ???????????????????# #????????????????????? | | ???????????????????# #????????????????????? | | ???????????????????# #????????????????????? | | ???????????????????# #????????????????????? | | ???????????????????# #????????????????????? | | ???????????????????# #????????????????????? | | ???????????????????# #????????????????????? | | ???????????????????# #????????????????????? | | ???????????????????# #????????????????????? | | ???????????????????# #????????????????????? | | ???????????????????#@ #????????????????????? | | ???????????????????#%! #????????????????????? | | ???????????????????+=* #????????????????????? | | ???????????????????#%= #????????????????????? | | ???????????????????#!! #????????????????????? | | ???????????????????# g #????????????????????? | | ???????????????????# #????????????????????? | | ???????????????????# #????????????????????? | | ??????????????????? ????????????????????? | | ??????????????????? ????????????????????? | | ??????????????????? ????????????????????? | | ??????????????????? #???????????????????? | | ??????????????????? #???????????????????? | | ???????????????????######???????????????????? | | ????????????????????????????????????????????? | | ????????????????????????????????????????????? | | ????????????????????????????????????????????? | | ????????????????????????????????????????????? | | ????????????????????????????????????????????? | | ????????????????????????????????????????????? | | ????????????????????????????????????????????? | | ????????????????????????????????????????????? | | ????????????????????????????????????????????? | | ????????????????????????????????????????????? | | | +----------------------------------------------------+ Best States ------------- Heat Dissipation 38 Energy Generation 14 Energy Capacity 280 Matter Stores 300 Matter Capacity 300 Sight Range 16 Robot Scan Range 14 Terrain Scan Density 10 Armor Coverage 150 Power Shielding 33 Evasion (%) 49 Recoil Reduction 3 Item Schematics ----------------- None Robot Schematics ------------------ None Fabricated ------------ Nothing Alien Tech Used ----------------- None Achievements -------------- None Challenges ------------ None Game ------ Seed DefenseExoskeletonLoader Manual? 0 Play Time 00:17:40 Cumulative 189.7 hours Start 2025.01.13 @ 20:01:42 End 2025.01.13 @ 20:19:18 Sessions 1 Manual Loads 0 Difficulty Rogue Special Mode None Game No. 259 Rogue 259 Adventurer 0 Explorer 0 Win Type - Total 1 Types 1/0/0/0/0/0/0/0/0 Lore% 32 Gallery% 62 Achievement% 42 Wizard Run 0 Options --------- Layout 1 ASCII 0 Keyboard 0 Movement Mouse Keybinds 0 Fullscreen 1 Font 24/Smallcaps Map View 50x35 Zoom Use 0% Tactical HUD 1 Map Filters NONE Filters NONE Steam 1 RUN: ce8b9ff1-1b91-4d9c-a9d3-af6bd8127e6e